bitfinex/quotes_ETHUSD_20240621
["timestamp","ask_amount","ask_price","bid_price","bid_amount"]
[1719010653738,0.35,3530.6,3530.5,2.26595]
[1719010654123,0.35,3530.6,3530.5,4.60412413]
[1719010660346,0.35,3530.6,3530.5,2.33816413]
[1719010671769,3.0,3530.8,3530.7,2.26583]
[1719010671965,5.26558,3531.1,3530.8,2.26575]
[1719010672165,0.35,3530.9,3530.8,2.26575]
[1719010672571,0.35,3530.9,3530.8,2.33778586]
[1719010680189,0.35,3530.9,3530.8,0.07203586]
[1719010680408,3.464275,3530.9,3530.8,0.07203586]
[1719010680573,3.464275,3530.9,3530.4,2.26602]
[1719010680882,3.464275,3530.9,3530.5,0.07195206]
[1719010681488,3.364275,3530.9,3530.5,0.07195206]
[1719010681804,3.364275,3530.9,3530.6,2.2659]
[1719010682015,3.364275,3530.9,3530.7,0.07189405]
[1719010682322,2.26577,3530.8,3530.7,0.07189405]
[1719010682671,1.76618,3530.2,3529.8,9.70641]
[1719010682889,1.76618,3530.2,3529.7,2.26647]
[1719010683170,2.11618,3530.2,3529.7,2.26647]
[1719010683373,2.11618,3530.2,3529.9,2.26635]
[1719010685706,0.35,3530.2,3530.1,2.26622]
[1719010685894,2.2659,3530.6,3530.2,2.26611]
[1719010686074,0.35,3530.4,3530.2,2.26611]
[1719010687504,0.35,3530.4,3530.3,0.07208074]
[1719010687876,0.35,3530.4,3530.1,2.26621]
[1719010688275,0.35,3530.4,3530.2,0.07210975]
[1719010691433,2.07708818,3530.3,3530.2,0.07210975]
[1719010691633,2.26597,3530.5,3530.2,0.07210975]
[1719010691795,2.08187801,3530.3,3530.2,0.07210975]
[1719010692191,2.08188951,3530.3,3530.2,0.07210975]
[1719010692420,4.72520199,3530.5,3530.2,0.07210975]
[1719010692621,0.35,3530.4,3530.2,0.07210975]
[1719010696008,2.08320256,3530.3,3530.2,2.26616]
[1719010696243,2.08320256,3530.3,3530.2,2.33834045]
[1719010698034,2.08319688,3530.3,3530.2,2.33834045]
[1719010700908,2.26584,3530.7,3530.2,2.33834045]
[1719010701234,2.08323207,3530.3,3530.2,2.33834045]
[1719010701406,2.08325637,3530.3,3530.2,2.33834045]
[1719010704127,2.26584,3530.7,3530.2,2.33834045]
[1719010704459,2.08324088,3530.3,3530.2,2.33834045]
[1719010705453,2.08324088,3530.4,3530.2,0.07218045]
[1719010705660,2.08324088,3530.3,3530.2,0.07218045]
[1719010706655,4.96709409,3530.3,3530.2,0.07218045]
[1719010706824,2.26645,3529.8,3529.2,7.44]
[1719010707024,4.35022236,3529.6,3529.3,0.07004767]
[1719010707230,2.26655,3529.6,3529.2,7.44]
[1719010707434,2.08333969,3529.5,3529.3,0.07004767]
[1719010707653,2.08333969,3529.5,3529.2,7.44]
[1719010707860,2.08333969,3529.5,3529.3,0.07014463]
[1719010708082,2.08333969,3529.4,3529.3,0.07014463]
[1719010708255,2.08333969,3529.5,3529.1,2.26685]
[1719010708450,2.08333969,3529.5,3529.2,3.20608827]
[1719010709057,2.08333969,3529.5,3529.2,0.93928827]
[1719010709462,2.08199778,3529.5,3529.2,3.20607827]
[1719010710278,2.26655,3529.6,3529.2,3.20607827]
[1719010710479,4.34807535,3529.6,3529.2,3.20607827]
[1719010710679,2.26655,3529.6,3529.2,3.20607827]
[1719010710861,4.34803065,3529.6,3529.2,3.20607827]
[1719010711060,2.08148065,3529.6,3529.2,3.20607827]
[1719010713285,4.69797065,3529.7,3529.2,3.20607827]
[1719010713488,2.61649,3529.7,3529.2,3.20607827]
[1719010713785,4.69680631,3529.7,3529.2,3.20607827]
[1719010714492,2.08031631,3529.6,3529.2,2.33707827]
[1719010715202,4.34680631,3529.7,3529.2,2.33707827]
[1719010715391,4.69680631,3529.7,3529.2,2.33707827]
[1719010715697,2.26655,3529.6,3529.2,0.07028827]
[1719010715869,5.27942794,3529.6,3529.2,0.07028827]
[1719010716069,5.27942794,3529.6,3528.9,2.26694]
[1719010716283,4.34686631,3529.6,3529.3,0.07029452]
[1719010716478,2.26661,3529.5,3528.9,2.26694]
[1719010716701,2.26674,3529.3,3528.9,2.26694]
[1719010717568,2.26674,3529.3,3529.0,0.0703816]
[1719010717794,2.26685,3529.2,3529.0,0.0703816]
[1719010718098,2.26685,3529.2,3528.6,2.26718]
[1719010718298,2.26685,3529.2,3529.1,0.07062587]
[1719010718475,2.26685,3529.2,3528.6,2.26718]
[1719010718674,2.26685,3529.2,3529.1,0.07062587]
[1719010718973,2.61685,3529.2,3528.6,2.26718]
[1719010719495,2.61685,3529.2,3528.7,0.070742]
[1719010719897,2.26689,3529.1,3528.6,2.26718]
[1719010720101,2.26689,3529.1,3528.8,0.07071296]
[1719010720397,2.26689,3529.1,3528.7,0.070742]
[1719010720702,2.26689,3529.1,3528.8,0.07071296]
[1719010721202,2.26689,3529.1,3528.6,2.26718]
[1719010721402,2.26689,3529.1,3528.9,0.07068393]
[1719010721585,2.26689,3529.1,3528.6,2.26718]
[1719010721785,2.26689,3529.1,3529.0,0.0706549]
[1719010721973,2.26689,3529.1,3528.6,2.26718]
[1719010722173,2.26689,3529.1,3529.0,0.0706549]
[1719010722474,2.26689,3529.1,3528.6,2.26718]
[1719010722675,2.26689,3529.1,3528.7,0.070742]
[1719010723176,2.26689,3529.1,3528.6,2.26718]
[1719010723387,2.26689,3529.1,3528.8,0.07071296]
[1719010723582,2.26689,3529.1,3528.7,0.070742]
[1719010723786,2.26689,3529.1,3528.9,0.07068393]
[1719010724185,2.26689,3529.1,3528.7,2.26712]
[1719010724394,2.26689,3529.1,3529.0,0.0706549]
[1719010724599,2.26689,3529.1,3528.7,2.26712]
[1719010725097,2.26689,3529.1,3528.8,0.07071296]
[1719010728407,4.53398,3528.9,3528.8,0.07071296]
[1719010728819,2.26718,3528.7,3528.1,4.5503]
[1719010729193,2.26718,3528.7,3528.2,0.07100478]
[1719010729382,2.61718,3528.7,3528.2,0.07100478]
[1719010731229,2.11718,3528.7,3528.2,0.07100478]
[1719010731625,2.11718,3528.7,3528.2,2.33843478]
[1719010731796,2.11718,3528.7,3528.2,0.94000478]
[1719010732527,0.35,3528.7,3528.3,2.26733]
[1719010732924,0.35,3528.7,3528.4,0.0709467]
[1719010733501,2.26722,3528.6,3528.4,0.0709467]
[1719010733714,2.26722,3528.6,3528.2,0.869]
[1719010733931,2.26722,3528.6,3528.5,0.07091766]
[1719010734129,2.26722,3528.6,3528.2,0.869]
[1719010734305,2.26713,3528.7,3528.5,0.07091766]
[1719010734510,2.61713,3528.7,3528.2,0.869]
[1719010734711,2.61713,3528.7,3528.6,0.07088863]
[1719010735026,2.61713,3528.7,3528.2,0.869]
[1719010735246,2.61713,3528.7,3528.6,0.07088863]
[1719010735404,2.61713,3528.7,3528.4,0.869]
[1719010735596,2.61713,3528.7,3528.6,0.07088863]
[1719010736106,2.61713,3528.7,3528.4,0.869]
[1719010736432,2.61713,3528.7,3528.6,0.07088863]
[1719010736619,2.61713,3528.7,3528.5,0.07091766]
[1719010736933,2.61713,3528.7,3528.6,0.07088863]
[1719010737105,2.61713,3528.7,3528.4,0.869]
[1719010737299,2.61713,3528.7,3528.5,0.07091766]
[1719010737503,0.35,3528.7,3528.5,0.07091766]
[1719010737953,2.26706,3528.8,3528.5,0.07091766]
[1719010738248,2.61706,3528.8,3528.5,0.07091766]
[1719010748113,0.35,3528.8,3528.6,0.869]
[1719010748313,2.267,3528.9,3528.7,0.07100366]
[1719010748539,2.267,3528.9,3528.6,0.869]
[1719010748540,2.26682,3529.2,3528.8,3.13605]
[1719010748746,2.26682,3529.2,3528.8,3.20702462]
[1719010749042,2.26682,3529.2,3528.8,0.93997462]
[1719010749244,0.35,3528.9,3528.8,0.93997462]
[1719010749543,2.26682,3529.2,3528.8,0.93997462]
[1719010749716,0.35,3529.0,3528.8,0.93997462]
[1719010750860,0.35,3529.0,3528.8,3.20701462]
[1719010751147,2.07685819,3529.2,3528.9,2.26699]
[1719010751348,2.07685819,3529.2,3528.9,2.33793559]
[1719010751719,2.42685819,3529.2,3528.9,2.33793559]
[1719010751922,4.69366819,3529.2,3528.9,0.07094559]
[1719010752141,2.07685819,3529.1,3528.9,0.07094559]
[1719010753153,2.61681,3529.2,3528.9,0.07094559]
[1719010753322,2.08082097,3529.1,3528.9,0.07094559]
[1719010756328,2.08139615,3529.1,3528.9,0.07094559]
[1719010756763,2.08145666,3529.1,3528.9,0.07094559]
[1719010757476,2.08145666,3529.0,3528.9,0.07094559]
[1719010759252,2.08145666,3529.1,3528.9,0.07094559]
[1719010759430,2.08145666,3529.0,3528.9,0.07094559]
[1719010759928,2.08145666,3529.1,3528.9,0.07094559]
[1719010760361,2.08145666,3529.0,3528.9,0.07094559]
[1719010760570,2.08145666,3529.1,3528.9,0.07094559]
[1719010760726,2.43145666,3529.1,3528.9,0.07094559]
[1719010760928,2.08145666,3529.0,3528.9,0.07094559]
[1719010762282,2.08145666,3529.1,3528.9,0.07094559]
[1719010762437,2.08145666,3529.0,3528.9,0.07094559]
[1719010762638,2.08273452,3529.1,3528.9,0.07094559]
[1719010762869,2.43273452,3529.1,3528.9,0.07094559]
[1719010763177,2.08273452,3529.0,3528.9,0.07094559]
[1719010764861,4.34954452,3529.2,3528.9,0.07094559]
[1719010765071,2.43273452,3529.1,3528.9,0.07094559]
[1719010765578,0.35,3529.1,3528.9,0.07094559]
[1719010765735,2.08296422,3529.0,3528.9,0.07094559]
[1719010765939,2.26681,3529.2,3528.9,0.07094559]
[1719010766259,2.08306472,3529.0,3528.9,0.07094559]
[1719010766669,2.08304767,3529.0,3528.9,0.07094559]
[1719010767190,2.26686,3529.1,3528.9,0.07094559]
[1719010767471,2.61686,3529.1,3528.9,0.07094559]
[1719010767645,2.61686,3529.1,3528.7,3.13611]
[1719010767848,2.08318397,3528.9,3528.7,3.13611]
[1719010768867,2.0831739,3528.9,3528.7,3.13611]
[1719010770274,2.0831739,3528.9,3528.7,0.869]
[1719010771593,2.0831739,3528.9,3528.7,3.13611]
[1719010771891,2.26687,3529.1,3528.7,3.13611]
[1719010772043,2.08341902,3528.9,3528.7,3.13611]
[1719010772889,2.08341902,3528.9,3528.7,0.869]
[1719010774287,2.08341902,3528.8,3528.7,0.869]
[1719010775297,2.08369702,3528.8,3528.7,0.869]
[1719010775453,2.26693,3529.0,3528.7,0.869]
[1719010775649,2.08376573,3528.8,3528.7,0.869]
[1719010777353,2.08376573,3528.8,3528.7,0.93992977]
[1719010778178,2.26694,3529.0,3528.7,0.93992977]
[1719010778385,2.08394072,3528.8,3528.7,0.93992977]
[1719010779285,2.26702,3528.9,3528.7,0.07092977]
[1719010779668,2.26702,3528.9,3528.5,5.42683]
[1719010779855,2.26702,3528.9,3528.8,0.07090074]
[1719010780057,2.26702,3528.9,3528.5,5.42683]
[1719010780569,2.08414066,3528.7,3528.6,0.07095881]
[1719010784388,2.08443618,3528.7,3528.6,0.07095881]
[1719010784693,2.26702,3528.9,3528.6,0.07095881]
[1719010784981,2.08448692,3528.7,3528.6,0.07095881]
[1719010787388,2.26702,3528.9,3528.6,0.07095881]
[1719010787562,2.08458777,3528.7,3528.6,0.07095881]
[1719010790662,2.08507578,3528.7,3528.6,0.07095881]
[1719010792210,2.26702,3528.9,3528.6,0.07095881]
[1719010793708,4.73062456,3529.0,3528.6,2.33812881]
[1719010793867,2.08560189,3528.7,3528.6,2.33812881]
[1719010794066,2.26694,3529.0,3528.6,3.20712881]
[1719010794265,2.08561109,3528.7,3528.6,3.20712881]
[1719010794710,2.08572557,3528.7,3528.6,3.20712881]
[1719010796568,2.08572557,3528.8,3528.6,3.20712881]
[1719010796794,2.08572557,3528.7,3528.6,3.20712881]
[1719010796996,2.08575109,3528.7,3528.6,3.20712881]
[1719010798359,1.58575109,3528.7,3528.6,3.20712881]
[1719010798952,2.26694,3529.0,3528.6,3.20712881]
[1719010799903,2.26694,3529.0,3528.7,2.26712]
[1719010800438,2.46376484,3529.1,3528.8,0.869]
[1719010800644,2.46376484,3529.2,3529.0,0.869]
[1719010800800,2.81376484,3529.2,3529.0,0.869]
[1719010801203,0.35,3529.2,3529.1,4.53372]
[1719010801402,2.46376484,3529.6,3529.2,2.26679]
[1719010801858,2.46376484,3529.6,3529.3,2.26673]
[1719010801999,4.87976484,3529.7,3529.3,3.13573]
[1719010802201,7.49624484,3529.7,3529.3,3.13573]
[1719010802503,2.46259935,3529.6,3529.3,2.26673]
[1719010802704,2.94772859,3530.0,3528.7,2.4779]
[1719010803007,2.26687,3529.1,3528.6,0.07095881]
[1719010803206,2.26687,3529.1,3528.7,2.26712]
[1719010803535,2.08440426,3528.9,3528.7,3.13612]
[1719010804202,2.08440426,3529.0,3528.9,2.26699]
[1719010804405,2.08440426,3529.2,3529.1,2.26686]
[1719010804663,2.08440426,3529.5,3529.2,2.2668]
[1719010804960,2.08440426,3529.5,3529.3,0.869]
[1719010805323,2.26648,3529.7,3529.3,3.13568]
[1719010805507,2.08386702,3529.5,3529.3,3.13568]
[1719010806519,2.26635,3529.9,3529.3,3.13568]
[1719010806520,2.08386702,3529.6,3529.5,7.01112]
[1719010806723,2.08386702,3529.8,3529.7,4.53296]
[1719010806924,6.5649617,3530.3,3529.7,0.869]
[1719010806925,2.08386702,3529.9,3529.7,0.869]
[1719010807129,4.80666792,3530.3,3529.9,2.26635]
[1719010807130,2.08386702,3530.0,3529.9,2.26635]
[1719010807445,5.13604,3530.4,3530.0,2.26623]
[1719010807446,2.08277359,3530.2,3530.0,2.26623]
[1719010807766,2.08277359,3530.2,3530.1,2.26622]
[1719010807925,2.08277359,3530.3,3530.2,4.53232]
[1719010808107,2.08277359,3530.5,3530.4,2.26603]
[1719010808450,7.26653247,3530.8,3530.4,2.26603]
[1719010808451,2.08126174,3530.6,3530.4,2.26603]
[1719010808629,0.35,3530.6,3530.4,2.26603]
[1719010809049,0.35,3530.6,3530.3,2.26609]
[1719010809208,2.43126174,3530.6,3530.3,2.26609]
[1719010809409,0.35,3530.6,3530.3,2.26609]
[1719010811708,0.35,3530.6,3530.2,0.869]
[1719010811709,2.6159,3530.6,3530.2,3.13515]
[1719010812107,2.6159,3530.6,3530.2,2.26615]
[1719010812410,2.26609,3530.4,3530.0,2.26627]
[1719010812831,2.61609,3530.4,3530.0,2.26627]
[1719010816724,2.61609,3530.4,3529.9,3.13534]
[1719010816725,0.35,3530.4,3530.2,2.26614]
[1719010816909,2.26591,3530.6,3530.2,2.26614]
[1719010817109,2.61591,3530.6,3530.2,2.26614]
[1719010817657,2.61591,3530.6,3530.3,0.07016855]
[1719010818427,4.88187,3530.6,3530.3,0.07016855]
[1719010818622,2.61591,3530.6,3530.3,0.07016855]
[1719010819052,3.55656134,3530.6,3530.3,0.07016855]
[1719010819233,2.26597,3530.5,3530.3,0.07016855]
[1719010819431,2.26597,3530.5,3530.1,3.13521]
[1719010819608,2.26597,3530.5,3530.4,0.07012485]
[1719010819813,2.26597,3530.5,3530.1,3.13521]
[1719010820454,2.26597,3530.5,3530.2,0.07018287]
[1719010820761,3.30069248,3530.5,3530.2,0.07018287]
[1719010822321,2.26603,3530.4,3530.2,0.07018287]
[1719010822828,1.03472248,3530.5,3530.2,0.07018287]
[1719010823044,2.26603,3530.4,3530.2,0.07018287]
[1719010823448,2.26603,3530.4,3530.0,2.26627]
[1719010823645,2.55095168,3530.4,3530.3,0.06992166]
[1719010824134,2.26611,3530.3,3529.9,0.869]
[1719010824334,2.26611,3530.3,3530.0,0.07000869]
[1719010824834,2.55096168,3530.4,3530.0,2.33627869]
[1719010825433,2.55096168,3530.4,3530.1,2.26621]
[1719010825774,0.28492168,3530.4,3530.2,0.06995067]
[1719010825970,3.30069248,3530.5,3530.2,0.06995067]
[1719010826183,3.65069248,3530.5,3530.2,0.06995067]
[1719010827151,1.38472248,3530.5,3530.2,2.33609067]
[1719010827399,1.38472248,3530.5,3530.3,0.869]
[1719010827400,0.35,3530.5,3530.3,0.869]
[1719010827674,2.61584,3530.7,3530.4,2.26603]
[1719010828031,2.61584,3530.7,3530.4,2.33592265]
[1719010829891,0.35,3530.7,3530.4,2.33592265]
[1719010831378,2.61584,3530.7,3530.4,2.33592265]
[1719010834781,2.46584,3530.7,3530.4,2.33592265]
[1719010835412,2.46584,3530.7,3530.4,0.06989265]
[1719010835817,3.63656427,3530.7,3530.4,0.06989265]
[1719010838525,4.53192,3530.5,3530.4,0.06989265]
[1719010838681,6.97192,3530.5,3530.4,0.06989265]
[1719010839025,2.26605,3530.4,3530.0,2.26628]
[1719010840616,2.26595,3530.6,3530.1,0.869]
[1719010840818,2.61595,3530.6,3530.1,3.1651]
[1719010841604,0.35,3530.6,3530.3,2.26604]
[1719010841903,2.26583,3530.7,3530.3,2.26604]
[1719010842110,2.61583,3530.7,3530.3,2.26604]
[1719010842711,2.61583,3530.7,3530.4,2.26602]
[1719010843301,4.69380287,3530.7,3530.4,2.26602]
[1719010844216,2.42797287,3530.7,3530.4,2.26602]
[1719010844717,2.07797287,3530.6,3530.4,2.26602]
[1719010844915,2.07797287,3530.7,3530.4,2.26602]
[1719010845116,2.07797287,3530.6,3530.4,2.26602]
[1719010845495,2.08008302,3530.6,3530.4,2.26602]
[1719010846618,2.08008302,3530.6,3530.5,2.26596]
[1719010847288,2.08008302,3530.7,3530.5,2.26596]
[1719010848486,2.08041234,3530.7,3530.5,2.26596]
[1719010848810,5.26577,3530.8,3530.5,2.26596]
[1719010848990,2.08071129,3530.6,3530.5,2.26596]
[1719010849385,5.26577,3530.8,3530.5,2.33567968]
[1719010849622,3.35,3530.8,3530.5,2.33567968]
[1719010849917,5.61577,3530.8,3530.5,0.06971968]
[1719010850487,8.07485503,3530.8,3530.5,0.06971968]
[1719010850925,5.80908503,3530.8,3530.5,2.33563968]
[1719010851715,5.81075828,3530.8,3530.5,2.33563968]
[1719010851922,3.35,3530.8,3530.5,2.33563968]
[1719010852123,5.81075926,3530.8,3530.5,2.33563968]
[1719010852427,2.46075926,3530.7,3530.5,2.33563968]
[1719010854843,2.46177247,3530.7,3530.5,2.33563968]
[1719010856549,2.81177247,3530.7,3530.5,2.33563968]
[1719010857914,2.81165925,3530.7,3530.5,2.33563968]
[1719010858335,2.81165926,3530.7,3530.5,2.33563968]
[1719010859051,0.35,3530.7,3530.5,2.33563968]
[1719010860565,2.81166986,3530.7,3530.5,2.33563968]
[1719010860764,0.35,3530.7,3530.5,2.33563968]
[1719010866257,2.81180479,3530.7,3530.5,2.33563968]
[1719010867395,0.35,3530.7,3530.5,2.33563968]
[1719010868494,5.26578,3530.8,3530.5,2.33563968]
[1719010868791,2.61578,3530.8,3530.5,2.33563968]
[1719010870457,2.2659,3530.6,3530.5,0.06971968]
[1719010870861,2.2659,3530.6,3530.2,2.26613]
[1719010871072,2.2659,3530.6,3530.5,0.06967559]
[1719010871267,2.2659,3530.6,3530.2,2.26613]
[1719010871482,2.6159,3530.6,3530.5,0.06967559]
[1719010872088,2.6159,3530.6,3530.2,4.53226]
[1719010872255,2.6159,3530.6,3530.5,0.06967559]
[1719010872453,2.6159,3530.6,3530.2,2.26613]
[1719010872656,2.6159,3530.6,3530.5,0.06967559]
[1719010872886,2.6159,3530.6,3530.2,2.26613]
[1719010873091,2.6159,3530.6,3530.5,0.06967559]
[1719010873296,2.6159,3530.6,3530.3,2.26608]
[1719010873497,2.6159,3530.6,3530.5,0.06967559]
[1719010873678,2.6159,3530.6,3530.4,0.0697046]
[1719010873878,2.6159,3530.6,3530.5,0.06967559]
[1719010874298,2.6159,3530.6,3530.3,2.26608]
[1719010874601,2.26577,3530.8,3530.4,0.0697046]
[1719010874807,0.35,3530.7,3530.5,2.26596]
[1719010875098,2.26577,3530.8,3530.5,2.26596]
[1719010875401,2.61577,3530.8,3530.6,0.06964952]
[1719010878413,2.46293181,3530.7,3530.6,0.06964952]
[1719010878820,5.26571,3530.9,3530.6,0.06964952]
[1719010878979,0.35,3530.8,3530.6,0.06964952]
[1719010881082,2.61578,3530.8,3530.6,0.06964952]
[1719010883383,5.07809616,3530.8,3530.6,0.06964952]
[1719010883583,5.07809616,3530.8,3530.5,2.26596]
[1719010883783,5.07809616,3530.8,3530.6,0.06964952]
[1719010884026,5.07809616,3530.8,3530.5,2.26596]
[1719010884183,5.07809616,3530.8,3530.7,0.06962051]
[1719010884383,8.07809616,3530.8,3530.5,2.26596]
[1719010884583,2.08424878,3530.6,3530.5,2.26596]
[1719010884827,2.46231616,3530.8,3530.5,2.26596]
[1719010885024,2.81231616,3530.8,3530.6,2.26588]
[1719010885621,2.46231616,3530.8,3530.7,2.26583]
[1719010885824,2.46231616,3530.9,3530.8,2.26577]
[1719010887814,3.0,3531.1,3530.8,2.26577]
[1719010888022,2.46198414,3530.9,3530.8,2.26577]
[1719010888245,0.35,3531.0,3530.8,2.26577]
[1719010888402,2.8119163,3531.0,3530.8,2.26577]
[1719010888811,0.35,3531.0,3530.6,2.26586]
[1719010889118,2.46188906,3530.8,3530.5,2.26595]
[1719010889306,2.46188906,3530.8,3530.6,2.26588]
[1719010889506,4.41479751,3531.1,3531.0,4.53128]
[1719010889723,2.87,3531.2,3531.0,4.53128]
[1719010889724,4.95403282,3531.2,3531.1,4.53116]
[1719010889925,2.46176895,3531.6,3531.3,2.26544]
[1719010890133,4.72697895,3531.7,3531.3,2.26544]
[1719010890440,0.35,3531.5,3531.3,2.26544]
[1719010891145,0.35,3531.5,3531.4,2.26539]
[1719010891312,0.35,3531.5,3531.3,2.26544]
[1719010893426,0.35,3531.5,3531.1,2.26552]
[1719010894113,2.61536,3531.5,3531.1,2.26552]
[1719010894316,2.61536,3531.5,3531.2,0.06936095]
[1719010895530,2.2654,3531.4,3531.2,0.06936095]
[1719010900628,2.2654,3531.4,3531.0,2.26563]
[1719010901166,2.26551,3531.3,3531.1,0.06925191]
[1719010901368,2.2655,3531.3,3531.1,0.06925191]
[1719010901666,2.2655,3531.3,3531.2,0.06922291]
[1719010901840,2.2655,3531.3,3530.9,2.26569]
[1719010902040,2.2655,3531.3,3531.2,0.06922291]
[1719010902256,2.2655,3531.3,3531.0,2.26563]
[1719010902451,2.2655,3531.3,3531.2,0.06922291]
[1719010902654,2.2655,3531.3,3530.9,2.26569]
[1719010902957,2.2655,3531.3,3531.2,0.06922291]
[1719010903168,2.2655,3531.3,3530.9,2.26569]
[1719010903769,2.2655,3531.3,3531.0,0.0692809]
[1719010904542,2.2655,3531.3,3531.0,2.3349209]
[1719010904771,2.26551,3531.2,3531.0,0.0692809]
[1719010913374,2.26558,3531.1,3531.0,0.0692809]
[1719010913775,2.26558,3531.1,3531.0,0.0693044]
[1719010914091,2.26558,3531.1,3530.8,5.44385]
[1719010914293,2.26558,3531.1,3531.0,0.0693044]
[1719010914471,2.26558,3531.1,3530.9,0.0693334]
[1719010914798,2.26558,3531.1,3531.0,0.0693044]
[1719010915601,2.26558,3531.1,3530.8,3.13475]
[1719010915898,2.26558,3531.1,3530.9,0.0693334]
[1719010919099,2.26552,3531.2,3530.9,0.0693334]
[1719010921583,2.26552,3531.2,3530.9,2.3350434]
[1719010924567,2.26546,3531.3,3530.9,2.3350434]
[1719010924771,2.26546,3531.3,3531.0,2.26564]
[1719010925077,2.26533,3531.5,3531.1,2.33477961]
[1719010925078,2.26534,3531.5,3531.1,2.33477961]
[1719010925494,2.2654,3531.4,3531.1,0.06921961]
[1719010926817,0.869,3531.9,3531.1,0.06921961]
[1719010926818,2.26505,3532.0,3531.4,2.3344]
[1719010927019,2.26513,3531.8,3531.4,4.59977]
[1719010927186,2.26513,3531.8,3531.5,0.06891861]
[1719010928959,2.26513,3531.8,3531.5,3.20322861]
[1719010929473,2.26513,3531.8,3531.5,2.33422861]
[1719010929613,2.26508,3531.9,3531.5,3.20322861]
[1719010931110,2.26508,3531.9,3531.5,2.33422861]
[1719010938376,2.26513,3531.8,3531.5,0.06891861]
[1719010939075,2.26513,3531.8,3531.5,2.33422861]
[1719010941644,2.26507,3531.9,3531.6,2.26523]
[1719010941843,2.26507,3531.9,3531.7,0.06870203]
[1719010942053,1.76507,3531.9,3531.7,0.06870203]
[1719010944693,1.76507,3531.9,3531.6,2.26523]
[1719010944895,1.76507,3531.9,3531.8,0.06869948]
[1719010945106,1.76507,3531.9,3531.7,0.06872846]
[1719010945265,1.76507,3531.9,3531.8,0.06870831]
[1719010945591,1.76507,3531.9,3531.6,2.26523]
[1719010945761,1.76507,3531.9,3531.8,0.06870831]
[1719010945954,2.26501,3532.0,3531.7,0.06873729]
[1719010946161,2.26501,3532.0,3531.8,0.06870831]
[1719010946575,2.26501,3532.0,3531.6,2.2652]
[1719010946789,2.26501,3532.0,3531.9,0.06867933]
[1719010946953,2.26501,3532.0,3531.6,2.2652]
[1719010947153,2.26501,3532.0,3531.9,0.06867933]
[1719010947351,2.26501,3532.0,3531.6,2.2652]
[1719010947586,2.26501,3532.0,3531.9,0.06867933]
[1719010948069,2.26501,3532.0,3531.6,2.2652]
[1719010948271,2.26501,3532.0,3531.7,0.06873729]
[1719010951588,2.26511,3531.9,3531.7,0.06873729]
[1719010952461,2.26495,3532.1,3531.7,2.33391729]
[1719010952680,2.61495,3532.1,3531.7,2.33391729]
[1719010955599,2.61495,3532.1,3531.8,2.26511]
[1719010955905,0.35,3532.1,3531.9,2.33371465]
[1719010956073,5.32652342,3532.7,3532.0,0.869]
[1719010956401,4.65934,3532.8,3532.3,2.26476]
[1719010956568,4.65934,3532.8,3532.5,2.26463]
[1719010956569,0.35,3532.7,3532.5,2.26463]
[1719010956901,0.35,3532.7,3532.6,0.0684941]
[1719010957081,3.35,3532.7,3532.6,0.0684941]
[1719010957265,0.35,3532.7,3532.4,2.26474]
[1719010957612,3.35,3532.7,3532.5,0.06837921]
[1719010958367,3.0,3532.7,3532.5,0.06837921]
[1719010958597,5.3948,3532.8,3532.5,0.06837921]
[1719010958809,2.26455,3532.7,3532.5,0.06837921]
[1719010959120,5.26455,3532.7,3532.5,0.06837921]
[1719010959271,2.26462,3532.6,3532.5,0.06837921]
[1719010959471,2.26462,3532.6,3532.3,2.26481]
[1719010959699,2.26462,3532.6,3532.4,0.06840819]
[1719010960672,4.52936,3532.5,3532.4,0.06840819]
[1719010960872,2.26484,3532.3,3532.0,2.265]
[1719010961068,2.26478,3532.4,3532.1,2.33340511]
[1719010961273,2.26484,3532.3,3532.1,0.06849511]
[1719010967886,2.26473,3532.5,3532.1,2.33337511]
[1719010969781,2.26476,3532.4,3532.1,2.33337511]
[1719010973621,2.26476,3532.4,3532.1,0.06849511]
[1719010974011,2.26482,3532.3,3532.1,0.06849511]
[1719010974206,2.26481,3532.3,3532.1,0.06849511]
[1719010974534,2.26481,3532.3,3532.0,2.26498]
[1719010974693,2.26481,3532.3,3532.2,0.06829293]
[1719010974891,2.26481,3532.3,3532.1,0.0683219]
[1719010975096,2.26481,3532.3,3532.2,0.06829293]
[1719010975526,2.26476,3532.4,3532.2,2.3086]
[1719010975713,2.26476,3532.4,3532.2,2.37689293]
[1719010978030,2.26476,3532.4,3532.2,0.06829293]
[1719010979345,2.26468,3532.5,3532.2,0.06829293]
[1719010979346,2.26481,3532.3,3532.2,0.06829293]
[1719010979553,2.26476,3532.4,3532.2,0.06829293]
[1719010979716,2.26476,3532.4,3532.1,2.26494]
[1719010979916,2.26476,3532.4,3532.3,0.06823752]
[1719010980116,2.26476,3532.4,3532.2,0.06826649]
[1719010980318,2.26476,3532.4,3532.3,0.06823752]
[1719010980714,2.26476,3532.4,3532.1,2.26494]
[1719010981011,2.26476,3532.4,3532.2,0.06826649]
[1719010990128,2.26481,3532.3,3532.2,0.06826649]
[1719010990528,2.26481,3532.3,3532.0,2.26495]
[1719010990755,2.26481,3532.3,3532.2,0.06826649]
[1719010990953,2.26481,3532.3,3532.1,0.06829547]
[1719010991149,2.26481,3532.3,3532.2,0.06826649]
[1719010991529,2.26481,3532.3,3532.0,2.26495]
[1719010991734,2.26481,3532.3,3532.2,0.06826649]
[1719010991944,2.26481,3532.3,3532.1,0.06829547]
[1719010992146,2.26481,3532.3,3532.2,0.06826649]
[1719010992459,2.26481,3532.3,3532.0,2.26495]
[1719010992626,2.26481,3532.3,3532.1,0.06829547]
[1719010993456,9.21981,3532.2,3532.1,0.06829547]
[1719010993653,9.21981,3532.2,3531.5,2.26532]
[1719010993862,2.26508,3531.9,3531.5,2.26532]
[1719010994059,2.26508,3531.9,3531.6,0.0684081]
[1719010996564,2.26508,3531.9,3531.6,2.3336581]
[1719010997138,2.26494,3532.1,3531.6,2.3336581]
[1719010997347,2.26501,3532.0,3531.6,3.2026581]
[1719010998573,2.26494,3532.1,3531.7,2.26514]